bitfinex-derivatives/quotes_BTCF0:USTF0_20250719
["timestamp","ask_amount","ask_price","bid_price","bid_amount"]
[1752939519336,0.2823821,118320.0,118310.0,1.49380474]
[1752939520934,0.2823821,118320.0,118310.0,1.43984099]
[1752939521340,0.3521621,118320.0,118310.0,1.43984099]
[1752939522640,0.51417611,118320.0,118310.0,1.43984099]
[1752939523038,0.51417611,118320.0,118310.0,1.49387353]
[1752939523039,0.3521621,118320.0,118310.0,1.49387353]
[1752939523640,0.3521621,118320.0,118310.0,1.32308966]
[1752939523839,0.56820865,118320.0,118310.0,1.22011846]
[1752939524339,0.56820865,118320.0,118310.0,1.26276846]
[1752939524835,0.3521621,118320.0,118310.0,1.26276846]
[1752939525040,0.3521621,118320.0,118310.0,1.31510846]
[1752939525841,0.3521621,118320.0,118310.0,1.30679945]
[1752939527235,0.56820865,118320.0,118310.0,0.10444966]
[1752939527436,0.92900865,118320.0,118310.0,0.002]
[1752939528041,1.09804865,118320.0,118310.0,0.002]
[1752939528841,1.60804865,118320.0,118310.0,0.002]
[1752939529541,1.2129621,118320.0,118310.0,0.02901]
[1752939529731,1.2129621,118320.0,118310.0,0.16877]
[1752939530337,1.2129621,118320.0,118310.0,0.11643]
[1752939530539,0.7129621,118320.0,118310.0,0.11643]
[1752939530937,0.92900865,118320.0,118310.0,0.11643]
[1752939531242,0.1689979,118280.0,118270.0,0.09492]
[1752939531438,0.3507679,118280.0,118270.0,0.74465]
[1752939533343,0.3507679,118280.0,118270.0,0.74565]
[1752939533646,0.3517679,118280.0,118270.0,0.74565]
[1752939534241,0.3517679,118280.0,118270.0,0.96169655]
[1752939534438,0.3517679,118280.0,118270.0,0.97726655]
[1752939535049,0.42078667,118280.0,118270.0,0.97726655]
[1752939535248,0.42078667,118280.0,118270.0,0.76122]
[1752939537043,0.21592877,118280.0,118270.0,1.50707875]
[1752939537243,0.23901667,118280.0,118270.0,1.50707875]
[1752939537444,0.07001877,118280.0,118270.0,1.52570842]
[1752939537749,0.001,118280.0,118270.0,1.52570842]
[1752939538443,0.2112316,118290.0,118280.0,0.2382079]
[1752939538639,0.2112316,118290.0,118280.0,0.92554445]
[1752939538842,0.1689857,118290.0,118280.0,0.92554445]
[1752939539043,0.4352383,118300.0,118290.0,0.2920536]
[1752939539243,0.4352383,118300.0,118290.0,1.50609015]
[1752939540849,0.4362383,118300.0,118290.0,1.50609015]
[1752939541252,0.4362383,118300.0,118290.0,1.2900436]
[1752939541553,0.4362383,118300.0,118290.0,1.50609015]
[1752939541749,0.4362383,118300.0,118290.0,1.50709015]
[1752939542246,0.4362383,118300.0,118290.0,1.2910436]
[1752939542449,0.4362383,118300.0,118290.0,1.50709015]
[1752939556356,0.4362383,118300.0,118290.0,1.14629015]
[1752939556560,0.4362383,118300.0,118290.0,1.50709015]
[1752939561866,0.4362383,118300.0,118290.0,1.14629015]
[1752939562170,0.4362383,118300.0,118290.0,1.2910436]
[1752939562365,0.4362383,118300.0,118290.0,1.50709015]
[1752939564271,0.4362383,118300.0,118290.0,1.2910436]
[1752939564568,0.4362383,118300.0,118290.0,1.50709015]
[1752939565576,0.4362383,118300.0,118290.0,1.2910436]
[1752939565874,0.4362383,118300.0,118290.0,1.50709015]
[1752939566977,0.4362383,118300.0,118290.0,1.14629015]
[1752939567276,0.4362383,118300.0,118290.0,1.50709015]
[1752939567573,0.4362383,118300.0,118290.0,0.1807]
[1752939567871,0.4362383,118300.0,118290.0,0.60847]
[1752939567872,1.01308485,118300.0,118290.0,0.60847]
[1752939568177,1.01308485,118300.0,118290.0,0.58148]
[1752939569574,1.01308485,118300.0,118290.0,0.60846]
[1752939569780,0.65228485,118300.0,118290.0,0.60846]
[1752939570178,0.65228485,118300.0,118290.0,0.64753]
[1752939571478,0.65228485,118300.0,118290.0,0.68112]
[1752939573282,0.65228485,118300.0,118290.0,0.10064]
[1752939573483,0.65228485,118300.0,118290.0,0.68112]
[1752939577687,0.65228485,118300.0,118290.0,0.68866]
[1752939580485,0.65228485,118300.0,118290.0,0.001]
[1752939580486,1.01308485,118300.0,118290.0,0.001]
[1752939580885,1.37388485,118300.0,118290.0,0.001]
[1752939581293,1.96188485,118300.0,118290.0,0.001]
[1752939581690,2.46188485,118300.0,118290.0,0.001]
[1752939583489,0.3491475,118280.0,118270.0,0.76509967]
[1752939583689,0.56519405,118280.0,118270.0,0.71360967]
[1752939584490,0.56519405,118280.0,118270.0,0.12580967]
[1752939585694,0.56519405,118280.0,118270.0,0.15597878]
[1752939585695,0.99412152,118280.0,118270.0,0.15597878]
[1752939585887,0.99412152,118280.0,118270.0,0.12090878]
[1752939586088,0.99412152,118280.0,118270.0,0.70858878]
[1752939586589,0.99412152,118280.0,118270.0,0.11690878]
[1752939586789,0.99412152,118280.0,118270.0,0.15597878]
[1752939588292,0.63332152,118280.0,118270.0,0.15597878]
[1752939588993,0.99412152,118280.0,118270.0,0.15597878]
[1752939593094,0.99412152,118280.0,118270.0,0.12580967]
[1752939593300,0.99412152,118280.0,118270.0,0.15597878]
[1752939594403,0.63332152,118280.0,118270.0,0.15597878]
[1752939595002,0.99412152,118280.0,118270.0,0.15597878]
[1752939596302,0.63332152,118280.0,118270.0,0.15597878]
[1752939597503,0.99412152,118280.0,118270.0,0.15597878]
[1752939597798,0.99412152,118280.0,118270.0,0.09221967]
[1752939598003,0.99412152,118280.0,118270.0,0.04879878]
[1752939598905,0.99412152,118280.0,118270.0,0.07358878]
[1752939599204,0.63332152,118280.0,118270.0,0.07358878]
[1752939600604,0.41727497,118280.0,118270.0,0.07358878]
[1752939600805,0.63332152,118280.0,118270.0,0.11341878]
[1752939601999,0.41727497,118280.0,118270.0,0.39329048]
[1752939602203,0.41727497,118280.0,118270.0,0.97013703]
[1752939603100,0.41727497,118280.0,118270.0,1.01539069]
[1752939603806,0.41727497,118280.0,118270.0,1.01639069]
[1752939604206,0.41727497,118280.0,118270.0,0.80034414]
[1752939604509,0.41727497,118280.0,118270.0,1.01639069]
[1752939606106,0.41727497,118280.0,118270.0,0.98622158]
[1752939609109,0.38327497,118280.0,118270.0,0.98622158]
[1752939611913,0.41826497,118280.0,118270.0,0.98622158]
[1752939616916,0.41826497,118280.0,118270.0,1.07260359]
[1752939617112,0.41826497,118280.0,118270.0,0.93230359]
[1752939618314,0.4000646,118290.0,118280.0,0.1689974]
[1752939618617,0.2112368,118290.0,118280.0,1.65457251]
[1752939618818,0.2112368,118290.0,118280.0,1.62439818]
[1752939619119,0.2617668,118290.0,118280.0,1.57914452]
[1752939619323,0.2617668,118290.0,118280.0,1.62437741]
[1752939619620,0.05053,118290.0,118280.0,1.62437741]
[1752939619823,0.4254377,118300.0,118290.0,0.3444631]
[1752939620119,0.4254377,118300.0,118290.0,0.94277264]
[1752939620911,0.4254377,118300.0,118290.0,0.99674467]
[1752939621320,0.4254377,118300.0,118290.0,0.95151608]
[1752939621519,0.4254377,118300.0,118290.0,0.99874467]
[1752939621824,0.2065807,118300.0,118290.0,0.99874467]
[1752939622124,0.394111,118310.0,118300.0,0.3489088]
[1752939622315,0.428141,118310.0,118300.0,1.51028939]
[1752939623825,0.428141,118310.0,118300.0,1.54044178]
[1752939624021,0.428141,118310.0,118300.0,1.54144178]
[1752939625424,0.428141,118310.0,118300.0,1.51128939]
[1752939626423,0.428141,118310.0,118300.0,1.58667037]
[1752939626824,0.2216878,118310.0,118300.0,1.58667037]
[1752939627025,0.2216878,118310.0,118300.0,1.72697037]
[1752939627219,0.2372978,118310.0,118300.0,1.58667037]
[1752939627617,0.2756178,118310.0,118300.0,1.58667037]
[1752939630428,0.2756178,118310.0,118300.0,1.60571233]
[1752939631223,0.2756178,118310.0,118300.0,1.60471233]
[1752939631429,0.2756178,118310.0,118300.0,1.60671233]
[1752939632429,0.2756178,118310.0,118300.0,1.34538315]
[1752939632630,0.3356078,118310.0,118300.0,1.56148374]
[1752939633129,0.3356078,118310.0,118300.0,1.60671233]
[1752939634830,0.3356078,118310.0,118300.0,1.56148374]
[1752939635130,0.3356078,118310.0,118300.0,1.60671233]
[1752939635632,0.3356078,118310.0,118300.0,1.56148374]
[1752939636031,0.3356078,118310.0,118300.0,1.60671233]
[1752939636332,0.3356078,118310.0,118300.0,1.56148374]
[1752939638234,0.3356078,118310.0,118300.0,1.60671233]
[1752939638936,0.3356078,118310.0,118300.0,1.39061174]
[1752939639131,0.3356078,118310.0,118300.0,1.56148374]
[1752939639632,0.3436578,118310.0,118300.0,1.56148374]
[1752939641334,0.3436578,118310.0,118300.0,1.60671233]
[1752939642635,0.34280051,118310.0,118300.0,1.60671233]
[1752939643136,0.34280051,118310.0,118300.0,1.71469268]
[1752939643336,0.34280051,118310.0,118300.0,1.39061174]
[1752939643537,0.34280051,118310.0,118300.0,1.71469268]
[1752939644234,0.17469,118310.0,118300.0,1.71469268]
[1752939644937,0.3436446,118310.0,118300.0,1.71469268]
[1752939646739,0.3436446,118310.0,118300.0,1.68454029]
[1752939647335,0.3053246,118310.0,118300.0,1.68454029]
[1752939651441,0.3426346,118310.0,118300.0,1.68454029]
[1752939652242,0.3426346,118310.0,118300.0,1.6393117]
[1752939652833,0.50467507,118310.0,118300.0,0.73075076]
[1752939653036,0.50467507,118310.0,118300.0,1.52014241]
[1752939654244,0.50467507,118310.0,118300.0,1.47491123]
[1752939654640,0.50467507,118310.0,118300.0,1.52015757]
[1752939654842,0.50467507,118310.0,118300.0,1.52003754]
[1752939655144,0.50467507,118310.0,118300.0,1.47479123]
[1752939659246,0.50467507,118310.0,118300.0,0.87670123]
[1752939659445,0.50467507,118310.0,118300.0,0.67469926]
[1752939659749,0.66671554,118310.0,118300.0,0.6289473]
[1752939659947,0.50467507,118310.0,118300.0,0.6289473]
[1752939660447,0.66671554,118310.0,118300.0,0.07745088]
[1752939660650,1.02751554,118310.0,118300.0,0.03218358]
[1752939660845,1.02751554,118310.0,118300.0,0.03018358]
[1752939661045,1.02751554,118310.0,118300.0,0.03118358]
[1752939662150,1.52751554,118310.0,118300.0,0.03018358]
[1752939662348,1.36547507,118310.0,118300.0,0.03018358]
[1752939664148,0.2333289,118300.0,118290.0,1.38802395]
[1752939664346,0.49967937,118300.0,118290.0,1.38802395]
[1752939664549,0.49967937,118300.0,118290.0,1.43717395]
[1752939664945,0.51619168,118300.0,118290.0,1.40699037]
[1752939665147,0.51619168,118300.0,118290.0,1.36172307]
[1752939665452,0.51619168,118300.0,118290.0,1.40699037]
[1752939665653,0.49967937,118300.0,118290.0,1.23800777]
[1752939667154,0.3376389,118300.0,118290.0,1.23800777]
[1752939667355,0.49967937,118300.0,118290.0,1.23900777]
[1752939667654,0.49967937,118300.0,118290.0,1.30430777]
[1752939669757,0.49967937,118300.0,118290.0,0.94350777]
[1752939670056,0.49967937,118300.0,118290.0,1.30430777]
[1752939670757,0.49967937,118300.0,118290.0,1.31945777]
[1752939672356,0.49967937,118300.0,118290.0,0.73749777]
[1752939672557,0.49967937,118300.0,118290.0,1.31945777]
[1752939679565,0.49967937,118300.0,118290.0,1.48844087]
[1752939685068,0.50084234,118300.0,118290.0,1.48844087]
[1752939686664,0.00116297,118300.0,118290.0,1.48844087]
[1752939686864,0.17013187,118300.0,118290.0,2.01128134]
[1752939688369,0.17013187,118300.0,118290.0,1.85024087]
[1752939689370,0.18666164,118300.0,118290.0,1.85024087]
[1752939690371,0.17013187,118300.0,118290.0,1.85024087]
[1752939690566,0.17013187,118300.0,118290.0,1.80497357]
[1752939694171,0.17013187,118300.0,118290.0,1.96701404]
[1752939694469,0.17013187,118300.0,118290.0,1.80497357]
[1752939695873,0.33569187,118300.0,118290.0,1.6429331]
[1752939696072,0.33569187,118300.0,118290.0,1.80497357]
[1752939697476,0.49773234,118300.0,118290.0,1.6429331]
[1752939697779,0.49773234,118300.0,118290.0,1.80497357]
[1752939698073,0.33569187,118300.0,118290.0,1.80497357]
[1752939698475,0.49773234,118300.0,118290.0,1.80437357]
[1752939699775,0.49773234,118300.0,118290.0,1.44357357]
[1752939700177,0.49773234,118300.0,118290.0,1.44157357]
[1752939700377,0.49773234,118300.0,118290.0,1.44257357]
[1752939702878,0.33569187,118300.0,118290.0,1.44257357]
[1752939703079,0.49773234,118300.0,118290.0,1.44257357]
[1752939703579,0.33569187,118300.0,118290.0,1.44257357]
[1752939704074,0.49773234,118300.0,118290.0,1.44257357]
[1752939704979,0.33569187,118300.0,118290.0,1.44257357]
[1752939705278,0.49773234,118300.0,118290.0,1.44257357]
[1752939705674,0.33569187,118300.0,118290.0,1.44257357]
[1752939705873,0.49773234,118300.0,118290.0,1.44257357]
[1752939706070,0.33569187,118300.0,118290.0,1.44257357]
[1752939708679,0.33569187,118300.0,118290.0,1.08177357]
[1752939708983,0.33569187,118300.0,118290.0,1.44257357]
[1752939710286,0.33569187,118300.0,118290.0,1.2805331]
[1752939710485,0.23314187,118300.0,118290.0,1.44257357]
[1752939710684,0.21844187,118300.0,118290.0,1.44257357]
[1752939711887,0.21844187,118300.0,118290.0,1.80337357]
[1752939712482,0.2534445,118310.0,118290.0,1.96541404]
[1752939712688,0.1689647,118310.0,118300.0,1.01593984]
[1752939712891,0.1689647,118310.0,118300.0,1.03483537]
[1752939713278,0.315085,118320.0,118310.0,0.2081446]
[1752939713483,0.168952,118320.0,118310.0,1.59724554]
[1752939713989,0.168952,118320.0,118310.0,1.43520507]
[1752939714689,0.168952,118320.0,118310.0,1.59724554]
[1752939715090,0.168952,118320.0,118310.0,1.43520507]
[1752939715389,0.168952,118320.0,118310.0,1.59724554]
[1752939716093,0.168952,118320.0,118310.0,1.43520507]
[1752939716386,0.168952,118320.0,118310.0,1.43620507]
[1752939716685,0.168952,118320.0,118310.0,1.2741646]
[1752939716881,0.168952,118320.0,118310.0,1.444481]
[1752939719886,0.168952,118320.0,118310.0,1.28244053]
[1752939720087,0.168952,118320.0,118310.0,1.444481]
[1752939720591,0.168952,118320.0,118310.0,1.60652147]
[1752939721484,0.168952,118320.0,118310.0,1.444481]
[1752939721690,0.168952,118320.0,118310.0,1.48960006]
[1752939721991,0.168952,118320.0,118310.0,1.32755959]
[1752939722191,0.168952,118320.0,118310.0,1.65164053]
[1752939724491,0.168952,118320.0,118310.0,1.48960006]
[1752939725392,0.168952,118320.0,118310.0,1.65164053]
[1752939726592,0.49433247,118320.0,118310.0,0.863161]
[1752939726794,0.49433247,118320.0,118310.0,1.447801]
[1752939727497,0.332292,118320.0,118310.0,1.447801]
[1752939727797,0.332292,118320.0,118310.0,0.863161]
[1752939728098,0.332292,118320.0,118310.0,1.28568053]
[1752939728393,0.49433247,118320.0,118310.0,1.447721]
[1752939728592,0.65637294,118320.0,118310.0,0.14909]
[1752939728799,0.332292,118320.0,118310.0,1.01645827]
[1752939729098,0.49433247,118320.0,118310.0,1.06516827]
[1752939729501,0.332292,118320.0,118310.0,1.06516827]
[1752939729799,0.49433247,118320.0,118310.0,1.06516827]
[1752939730299,0.49433247,118320.0,118310.0,1.08765218]
[1752939730500,0.49433247,118320.0,118310.0,0.92561171]
[1752939730697,0.49433247,118320.0,118310.0,1.08765218]
[1752939730899,0.49433247,118320.0,118310.0,1.44845218]
[1752939731104,0.49433247,118320.0,118310.0,1.28641171]
[1752939731401,0.49433247,118320.0,118310.0,1.44845218]
[1752939731904,0.332292,118320.0,118310.0,1.44845218]
[1752939732093,0.49433247,118320.0,118310.0,1.44845218]
[1752939734201,0.49433247,118320.0,118310.0,1.28641171]
[1752939734402,0.49433247,118320.0,118310.0,1.44845218]
[1752939735703,0.49433247,118320.0,118310.0,1.08765218]
[1752939735902,0.49433247,118320.0,118310.0,1.44845218]
[1752939737403,0.332292,118320.0,118310.0,1.44845218]
[1752939738103,0.49433247,118320.0,118310.0,1.44845218]
[1752939740104,0.49433247,118320.0,118310.0,1.33153077]
[1752939740298,0.49433247,118320.0,118310.0,1.49357124]
[1752939742701,0.49433247,118320.0,118310.0,1.33153077]
[1752939742902,0.49433247,118320.0,118310.0,1.49357124]
[1752939743507,0.332292,118320.0,118310.0,1.49357124]
[1752939743804,0.49433247,118320.0,118310.0,1.49357124]
[1752939745500,0.49433247,118320.0,118310.0,1.33153077]
[1752939745700,0.49433247,118320.0,118310.0,1.49357124]
[1752939746606,0.332292,118320.0,118310.0,1.49357124]
[1752939746807,0.49433247,118320.0,118310.0,1.49357124]
[1752939747508,0.332292,118320.0,118310.0,1.49357124]
[1752939747708,0.49433247,118320.0,118310.0,1.49357124]
[1752939747909,0.49433247,118320.0,118310.0,1.33153077]
[1752939748110,0.49433247,118320.0,118310.0,1.49357124]
[1752939749505,0.332292,118320.0,118310.0,1.49357124]
[1752939749808,0.49433247,118320.0,118310.0,1.49357124]
[1752939750003,0.65637294,118320.0,118310.0,0.07738906]
[1752939750207,0.67289139,118320.0,118310.0,0.6551]
[1752939750408,0.51085092,118320.0,118310.0,0.84969047]
[1752939750609,0.51085092,118320.0,118310.0,0.90833233]
[1752939750809,0.34881045,118320.0,118310.0,0.89975047]
[1752939751011,0.67289139,118320.0,118310.0,0.94558953]
[1752939751211,0.34881045,118320.0,118310.0,0.90047047]
[1752939751412,0.34881045,118320.0,118310.0,0.94558953]
[1752939751613,0.67289139,118320.0,118310.0,0.95399592]
[1752939751813,0.34881045,118320.0,118310.0,0.94558953]
[1752939752014,0.34881045,118320.0,118310.0,0.78354906]
[1752939752213,0.51085092,118320.0,118310.0,0.90047047]
[1752939752408,0.51085092,118320.0,118310.0,0.94558953]
[1752939752614,0.67289139,118320.0,118310.0,0.90047047]
[1752939752815,0.51085092,118320.0,118310.0,0.73843]
[1752939753017,0.67289139,118320.0,118310.0,0.73843]
[1752939753220,0.67289139,118320.0,118310.0,0.68837]
[1752939754823,0.34881045,118320.0,118310.0,0.68837]
[1752939755023,0.67289139,118320.0,118310.0,0.68837]
[1752939755417,0.67289139,118320.0,118310.0,0.73843]
[1752939755718,0.34881045,118320.0,118310.0,1.06942837]
[1752939755923,0.67289139,118320.0,118310.0,0.73843]
[1752939756611,0.67289139,118320.0,118310.0,0.90047047]
[1752939757622,0.67289139,118320.0,118310.0,1.06942837]
[1752939758425,0.67289139,118320.0,118310.0,0.9073879]
[1752939758623,0.67289139,118320.0,118310.0,1.06942837]
[1752939759024,0.34881045,118320.0,118310.0,1.06942837]
[1752939759323,0.67289139,118320.0,118310.0,1.06942837]
[1752939759625,0.67289139,118320.0,118310.0,0.9073879]
[1752939759824,0.67289139,118320.0,118310.0,1.06942837]
[1752939760020,0.34881045,118320.0,118310.0,1.06942837]
[1752939760315,0.67289139,118320.0,118310.0,1.06942837]
[1752939760819,0.67289139,118320.0,118310.0,0.9073879]
[1752939761025,0.67289139,118320.0,118310.0,0.73843]
[1752939761825,0.67289139,118320.0,118310.0,0.90047047]
[1752939762125,0.67289139,118320.0,118310.0,1.06942847]
[1752939763025,0.67289139,118320.0,118310.0,0.907388]
[1752939764228,0.67289139,118320.0,118310.0,1.06942847]
[1752939764725,0.67289139,118320.0,118310.0,0.907388]
[1752939764925,0.67289139,118320.0,118310.0,1.06942847]
[1752939765627,0.34881045,118320.0,118310.0,1.06942847]
[1752939765928,0.51085092,118320.0,118310.0,0.907388]
[1752939766228,0.51085092,118320.0,118310.0,1.08402847]
[1752939766728,0.67289139,118320.0,118310.0,1.08402847]
[1752939768924,0.67289139,118320.0,118310.0,0.921988]
[1752939769121,0.34881045,118320.0,118310.0,1.08402847]
[1752939769320,0.67289139,118320.0,118310.0,1.08402847]
[1752939769530,0.51085092,118320.0,118310.0,1.08402847]
[1752939769730,0.51085092,118320.0,118310.0,0.921988]
[1752939770331,0.51085092,118320.0,118310.0,1.08402847]
[1752939770631,0.67289139,118320.0,118310.0,1.08402847]
[1752939775931,0.67289139,118320.0,118310.0,0.169958]
[1752939776125,1.62141139,118320.0,118310.0,0.001]
[1752939777033,2.12141139,118320.0,118310.0,0.001]
[1752939782939,2.17141139,118320.0,118310.0,0.001]
[1752939783135,2.17141139,118320.0,118310.0,1e-07]
[1752939783434,2.33345186,118320.0,118310.0,1e-07]
[1752939786337,2.34180187,118320.0,118310.0,1e-07]
[1752939788738,0.2061666,118290.0,118280.0,0.14264906]
[1752939789040,1.01274754,118290.0,118280.0,0.1424]
[1752939789443,0.85070707,118290.0,118280.0,0.1424]
[1752939789644,0.8676938,118290.0,118280.0,0.1424]
[1752939789944,0.8676938,118290.0,118280.0,0.1434]
[1752939790541,0.8676938,118290.0,118280.0,0.1424]
[1752939790743,0.8676938,118290.0,118280.0,0.09766]
[1752939791140,0.85070707,118290.0,118280.0,0.09766]
[1752939793344,0.6886666,118290.0,118280.0,0.09766]
[1752939793539,0.85070707,118290.0,118280.0,0.1424]
[1752939794343,0.85070707,118290.0,118280.0,0.30444047]
[1752939794947,0.85070707,118290.0,118280.0,0.47344137]
[1752939795149,0.3278666,118290.0,118280.0,0.64928184]
[1752939795351,0.48990707,118290.0,118280.0,0.64928184]
[1752939795647,0.48990707,118290.0,118280.0,0.3252009]
[1752939795842,0.48990707,118290.0,118280.0,0.48724137]
[1752939796146,0.3278666,118290.0,118280.0,0.48724127]
[1752939796347,0.48990707,118290.0,118280.0,0.48724127]
[1752939797946,0.48990707,118290.0,118280.0,0.84804127]
[1752939798249,0.48990707,118290.0,118280.0,0.48724127]
[1752939799746,0.48990707,118290.0,118280.0,0.3252008]
[1752939800045,0.48990707,118290.0,118280.0,0.48724127]
[1752939801442,0.48990707,118290.0,118280.0,0.3252008]
[1752939801746,0.48990707,118290.0,118280.0,1.07532127]
[1752939802247,0.48990707,118290.0,118280.0,1.2740808]
[1752939802448,0.48990707,118290.0,118280.0,1.43612127]
[1752939804444,0.3278666,118290.0,118280.0,1.43612127]
[1752939804649,0.3278666,118290.0,118280.0,1.59816174]
[1752939804650,0.1689866,118290.0,118280.0,1.59816174]
[1752939805246,0.1689866,118290.0,118280.0,1.23736174]
[1752939805450,0.38952707,118290.0,118280.0,1.43612127]
[1752939805945,0.42388707,118290.0,118280.0,1.43612127]
[1752939806251,0.1689866,118290.0,118280.0,1.43612127]
[1752939806646,0.2274866,118290.0,118280.0,1.43612127]
[1752939806845,0.2618466,118290.0,118280.0,1.43612127]
[1752939807042,0.42388707,118290.0,118280.0,1.43612127]
[1752939807251,0.42388707,118290.0,118280.0,1.2740808]
[1752939807451,0.42388707,118290.0,118280.0,1.43612127]
[1752939808450,0.47886707,118290.0,118280.0,1.2740808]
[1752939808653,0.47886707,118290.0,118280.0,1.43612127]
[1752939809951,0.48599707,118290.0,118280.0,1.43612127]
[1752939810252,0.48599707,118290.0,118280.0,1.2740808]
[1752939810451,0.48599707,118290.0,118280.0,1.43612127]
[1752939811152,0.48599707,118290.0,118280.0,1.48124033]
[1752939816160,0.50300088,118290.0,118280.0,1.48124033]
[1752939817559,0.34096041,118290.0,118280.0,1.31919986]
[1752939817858,0.50300088,118290.0,118280.0,1.48124033]
[1752939826968,0.50300088,118290.0,118280.0,1.12044033]
[1752939827169,0.50300088,118290.0,118280.0,1.48124033]
[1752939827468,0.34096041,118290.0,118280.0,1.48124033]
[1752939827668,0.50300088,118290.0,118280.0,1.48124033]
[1752939828572,0.34096041,118290.0,118280.0,1.48124033]
[1752939828770,0.50300088,118290.0,118280.0,1.48124033]
[1752939829270,0.34096041,118290.0,118280.0,1.48124033]
[1752939829469,0.50300088,118290.0,118280.0,1.48124033]
[1752939831676,0.50300088,118290.0,118280.0,0.95839986]
[1752939831975,0.50300088,118290.0,118280.0,1.12044033]
[1752939832278,0.34096041,118290.0,118280.0,1.12044033]
[1752939832472,0.50300088,118290.0,118280.0,1.48124033]
[1752939835683,0.50300088,118290.0,118280.0,1.12044033]
[1752939835977,0.50300088,118290.0,118280.0,1.48124033]
[1752939837281,0.50300088,118290.0,118280.0,1.12044033]
[1752939837680,0.50300088,118290.0,118280.0,0.95839986]
[1752939837881,0.50300088,118290.0,118280.0,1.12044033]
[1752939839081,0.50301245,118290.0,118280.0,1.12044033]
[1752939840786,0.50301245,118290.0,118280.0,1.48124033]
[1752939841687,0.34097198,118290.0,118280.0,1.48124033]
[1752939841990,0.50301245,118290.0,118280.0,1.48124033]
[1752939843291,0.50301245,118290.0,118280.0,1.31919986]
[1752939843487,0.50301245,118290.0,118280.0,1.48124033]
[1752939843889,0.50301245,118290.0,118280.0,1.12044033]
[1752939844078,0.50301245,118290.0,118280.0,1.48124033]
[1752939845388,0.50301245,118290.0,118280.0,1.31919986]
[1752939845588,0.50301245,118290.0,118280.0,1.48124033]
[1752939847290,0.34097198,118290.0,118280.0,1.48124033]
[1752939847589,0.50301245,118290.0,118280.0,1.48124033]
[1752939848389,0.50301245,118290.0,118280.0,1.31919986]
[1752939848589,0.50301245,118290.0,118280.0,1.48124033]
[1752939849385,0.50301245,118290.0,118280.0,1.12044033]
[1752939849589,0.50301245,118290.0,118280.0,1.48124033]
[1752939849790,0.50301245,118290.0,118280.0,1.12044033]
[1752939850086,0.50301245,118290.0,118280.0,1.48124033]
[1752939851992,0.50301245,118290.0,118280.0,1.31919986]
[1752939852192,0.50301245,118290.0,118280.0,1.48124033]
[1752939852595,0.50301245,118290.0,118280.0,1.31919986]
[1752939852794,0.50301245,118290.0,118280.0,1.48124033]
[1752939858897,0.34097198,118290.0,118280.0,1.48124033]
[1752939859097,0.50301245,118290.0,118280.0,1.48124033]
[1752939859398,0.34097198,118290.0,118280.0,1.48124033]
[1752939859595,0.50301245,118290.0,118280.0,1.48124033]
[1752939860097,0.18600198,118290.0,118280.0,1.6432808]
[1752939860697,0.18600198,118290.0,118280.0,1.31919986]
[1752939860896,0.18600198,118290.0,118280.0,1.48124033]
[1752939861092,0.2981025,118300.0,118290.0,0.1689866]
[1752939861292,0.27048439,118300.0,118290.0,0.84154707]
[1752939861899,0.27048439,118300.0,118290.0,0.6795066]
[1752939862094,0.27048439,118300.0,118290.0,0.84154707]
[1752939862294,0.27148439,118300.0,118290.0,0.84154707]
[1752939862597,0.27248439,118300.0,118290.0,0.84154707]
[1752939862788,0.27148439,118300.0,118290.0,0.84254707]
[1752939863794,0.27148439,118300.0,118290.0,0.88766613]
[1752939863998,0.27048439,118300.0,118290.0,0.88866613]
[1752939865998,0.2534725,118300.0,118290.0,0.88866613]
[1752939868601,0.2981025,118300.0,118290.0,0.88866613]
[1752939871606,0.2981025,118300.0,118290.0,0.72662566]
[1752939871800,0.2981025,118300.0,118290.0,0.88866613]
[1752939873109,0.2112264,118300.0,118290.0,0.88866613]
[1752939874805,0.2112264,118300.0,118290.0,1.0507066]
[1752939875105,0.2112264,118300.0,118290.0,0.88866613]
[1752939875810,0.2558564,118300.0,118290.0,0.88866613]
[1752939876005,0.2692264,118300.0,118290.0,0.88866613]
[1752939876307,0.2558564,118300.0,118290.0,0.88866613]
[1752939877709,0.2136123,118300.0,118290.0,0.88866613]
[1752939877906,0.2136023,118300.0,118290.0,0.88866613]
[1752939878102,0.2136023,118300.0,118290.0,1.0507066]
[1752939878311,0.2136023,118300.0,118290.0,0.88866613]
[1752939881009,0.3170223,118300.0,118290.0,1.47194613]
[1752939882614,0.3170223,118300.0,118290.0,1.30990566]
[1752939882818,0.3170223,118300.0,118290.0,1.47194613]
[1752939883515,0.3170223,118300.0,118290.0,1.30990566]
[1752939883716,0.3170223,118300.0,118290.0,1.47194613]
[1752939883915,0.47906277,118300.0,118290.0,1.47190613]
[1752939884719,0.47906277,118300.0,118290.0,1.30986566]
[1752939884919,0.47906277,118300.0,118290.0,1.47190613]
[1752939886319,0.3170223,118300.0,118290.0,1.47190613]
[1752939886513,0.47906277,118300.0,118290.0,1.47190613]
[1752939887313,0.3170223,118300.0,118290.0,1.47190613]
[1752939888020,0.47906277,118300.0,118290.0,1.47190613]
[1752939889322,0.3170223,118300.0,118290.0,1.47190613]
[1752939889820,0.3170223,118300.0,118290.0,1.30986566]
[1752939890021,0.3170223,118300.0,118290.0,1.47190613]
[1752939890224,0.47906277,118300.0,118290.0,1.47190613]
[1752939890822,0.3170223,118300.0,118290.0,1.47190613]
[1752939891119,0.47906277,118300.0,118290.0,1.47190613]
[1752939892124,0.47906277,118300.0,118290.0,1.30986566]
[1752939892320,0.47906277,118300.0,118290.0,1.47190613]
[1752939892520,0.3170223,118300.0,118290.0,1.49063075]
[1752939892822,0.3170223,118300.0,118290.0,1.32859028]
[1752939893022,0.3170223,118300.0,118290.0,1.49063075]
[1752939896124,0.3170223,118300.0,118290.0,1.32859028]
[1752939896329,0.3170223,118300.0,118290.0,1.49063075]
[1752939899826,0.3170223,118300.0,118290.0,1.32859028]
[1752939900126,0.3170223,118300.0,118290.0,1.49063075]
[1752939900827,0.3170223,118300.0,118290.0,1.32859028]
[1752939901125,0.47906277,118300.0,118290.0,1.49063075]
[1752939903630,0.47906277,118300.0,118290.0,0.74535028]
[1752939903930,0.64110324,118300.0,118290.0,1.43320075]
[1752939904129,0.65811186,118300.0,118290.0,1.43320075]
[1752939904326,0.49607139,118300.0,118290.0,1.43320075]
[1752939904728,0.49607139,118300.0,118290.0,1.47494075]
[1752939905331,0.65811186,118300.0,118290.0,0.19995368]
[1752939905632,0.65811186,118300.0,118290.0,0.74137368]
[1752939905830,1.01891186,118300.0,118290.0,0.11712368]
[1752939906031,1.01891186,118300.0,118290.0,0.67098368]
[1752939906233,1.01891186,118300.0,118290.0,0.62586462]
[1752939906726,1.01891186,118300.0,118290.0,0.62486462]
[1752939907031,1.01891186,118300.0,118290.0,0.65763462]
[1752939907831,1.01891186,118300.0,118290.0,0.65663462]
[1752939908025,1.01891186,118300.0,118290.0,0.62386462]
[1752939908436,1.01891186,118300.0,118290.0,0.60188462]
[1752939908928,1.01891186,118300.0,118290.0,0.01872462]